[Event "EICC 2021"]
[Site "Reykjavik"]
[Date "2021.08.27"]
[Round "2.38"]
[White "Subelj, Jan"]
[Black "Sanal, Vahap"]
[Result "0-1"]
[ECO "C84"]
[WhiteElo "2412"]
[BlackElo "2557"]
[Annotator "ChessBase"]
[PlyCount "66"]
[EventDate "2021.08.26"]
[EventType "swiss"]
[EventCountry "ISL"]
[Tiebreak "Cut1 Buchholz"]
[SourceTitle "playchess.com"]
[Source "ChessBase"]
[SourceQuality "1"]
[TimeControl "40/5400+30:1800+30"]

1. e4 {[%emt 0:00:07]} e5 {[%emt 0:00:07]} 2. Nf3 {[%emt 0:00:37]} Nc6 {
[%emt 0:00:24]} 3. Bb5 {[%emt 0:01:02]} a6 {[%emt 0:00:10]} 4. Ba4 {[%emt 0:00:
15]} Nf6 {[%emt 0:00:07]} 5. O-O {[%emt 0:01:11]} Be7 {[%emt 0:00:19]} 6. d3 {
[%emt 0:01:04]} b5 {[%emt 0:00:08]} 7. Bb3 {[%emt 0:00:08]} d6 {[%emt 0:00:04]}
8. c3 {[%emt 0:01:53]} O-O {[%emt 0:01:51]} 9. a4 {[%emt 0:02:58]} Bd7 {
[%emt 0:03:33]} 10. Bc2 {[%emt 0:05:02]} Re8 {[%emt 0:02:50]} 11. Re1 {[%emt 0:
01:15]} Bf8 {[%emt 0:02:37]} 12. Nbd2 {[%emt 0:04:17]} Rb8 {[%emt 0:05:06]} 13.
Nf1 {[%emt 0:02:37]} g6 {[%emt 0:00:55]} 14. Bg5 {[%emt 0:06:55]} h6 {[%emt 0:
02:35]} 15. Bxf6 {[%emt 0:01:57]} Qxf6 {[%emt 0:00:05]} 16. axb5 {[%emt 0:00:
28]} axb5 {[%emt 0:00:09]} 17. Ne3 {[%emt 0:00:17]} Qd8 {[%emt 0:01:10]} 18.
Bb3 {[%emt 0:06:23]} Bg7 {[%emt 0:00:57]} 19. h4 {[%emt 0:03:02]} Rf8 {[%emt 0:
02:56]} 20. d4 {[%emt 0:07:27]} Kh8 {[%emt 0:04:29]} 21. h5 {[%emt 0:14:11]} f5
{[%emt 0:04:20]} 22. exf5 {[%emt 0:02:59]} gxf5 {[%emt 0:05:22]} 23. dxe5 {
[%emt 0:01:16]} Nxe5 {[%emt 0:00:32]} 24. Bc2 {[%emt 0:16:23]} b4 {[%emt 0:11:
47]} 25. Nxe5 {[%emt 0:09:45]} Bxe5 {[%emt 0:02:09]} 26. Nd5 {[%emt 0:00:52]}
bxc3 {[%emt 0:10:35]} 27. f4 {[%emt 0:01:30]} Bg7 {[%emt 0:04:02]} 28. bxc3 {
[%emt 0:00:38]} Rf7 {[%emt 0:06:46]} 29. Qe2 {[%emt 0:04:36]} Kh7 {[%emt 0:06:
01]} 30. Ra3 {[%emt 0:03:53]} Qh4 {[%emt 0:08:00]} 31. Nxc7 {[%emt 0:00:30]}
Rb2 {[%emt 0:03:37]} 32. Rf1 {[%emt 0:00:23]} Re7 {[%emt 0:01:04]} 33. Qf2 {
[%emt 0:00:20]} Qg4 {[%emt 0:00:25]} 0-1

[Event "EICC 2021"]
[Site "Reykjavik"]
[Date "2021.08.27"]
[Round "2.39"]
[White "Bjerre, Jonas Buhl"]
[Black "Sokolovsky, Yahli"]
[Result "1-0"]
[ECO "C84"]
[WhiteElo "2550"]
[BlackElo "2415"]
[Annotator "ChessBase"]
[PlyCount "75"]
[EventDate "2021.08.26"]
[EventType "swiss"]
[EventCountry "ISL"]
[Tiebreak "Cut1 Buchholz"]
[SourceTitle "playchess.com"]
[Source "ChessBase"]
[SourceQuality "1"]
[TimeControl "40/5400+30:1800+30"]

1. e4 {[%emt 0:00:07]} e5 {[%emt 0:00:09]} 2. Nf3 {[%emt 0:00:09]} Nc6 {
[%emt 0:00:05]} 3. Bb5 {[%emt 0:00:09]} a6 {[%emt 0:00:04]} 4. Ba4 {[%emt 0:00:
07]} Nf6 {[%emt 0:00:14]} 5. O-O {[%emt 0:00:24]} Be7 {[%emt 0:00:22]} 6. d3 {
[%emt 0:00:12]} b5 {[%emt 0:00:50]} 7. Bb3 {[%emt 0:00:07]} d6 {[%emt 0:00:21]}
8. c3 {[%emt 0:00:52]} O-O {[%emt 0:01:07]} 9. a4 {[%emt 0:00:31]} Bb7 {
[%emt 0:02:14]} 10. Bg5 {[%emt 0:01:41]} h6 {[%emt 0:04:41]} 11. Bxf6 {[%emt 0:
01:11]} Bxf6 {[%emt 0:00:06]} 12. Na3 {[%emt 0:02:22]} b4 {[%emt 0:05:37]} 13.
Nc4 {[%emt 0:00:30]} Rb8 {[%emt 0:06:48]} 14. a5 {[%emt 0:05:48]} g6 {[%emt 0:
07:14]} 15. Ne3 {[%emt 0:03:38]} Bg7 {[%emt 0:00:58]} 16. Bc4 {[%emt 0:06:42]}
bxc3 {[%emt 0:03:54]} 17. bxc3 {[%emt 0:01:16]} Ne7 {[%emt 0:00:21]} 18. Rb1 {
[%emt 0:10:24]} Kh7 {[%emt 0:10:38]} 19. Rb3 {[%emt 0:05:17]} c6 {[%emt 0:13:
10]} 20. Qb1 {[%emt 0:03:27]} Qc7 {[%emt 0:00:32]} 21. Qb2 {[%emt 0:05:46]} Ba8
{[%emt 0:12:30]} 22. Rb6 {[%emt 0:05:08]} d5 {[%emt 0:05:58]} 23. Bxa6 {
[%emt 0:05:44]} f5 {[%emt 0:01:29]} 24. Rb1 {[%emt 0:04:00]} Rbe8 {[%emt 0:04:
33]} 25. Nd2 {[%emt 0:08:46]} h5 {[%emt 0:09:41]} 26. Qa3 {[%emt 0:02:34]} Rf7
{[%emt 0:04:37]} 27. Bb7 {[%emt 0:02:46]} fxe4 {[%emt 0:03:18]} 28. dxe4 {
[%emt 0:01:28]} Bh6 {[%emt 0:00:33]} 29. Qc5 {[%emt 0:02:43]} Bf8 {[%emt 0:01:
00]} 30. exd5 {[%emt 0:05:54]} Nxd5 {[%emt 0:00:41]} 31. Qxc6 {[%emt 0:01:36]}
Nxb6 {[%emt 0:01:36]} 32. Qxe8 {[%emt 0:00:52]} Qxb7 {[%emt 0:00:35]} 33. Rxb6
{[%emt 0:01:57]} Qd7 {[%emt 0:00:31]} 34. Qxd7 {[%emt 0:01:24]} Rxd7 {[%emt 0:
00:03]} 35. Ndc4 {[%emt 0:01:23]} Bc5 {[%emt 0:00:32]} 36. Rb5 {[%emt 0:01:26]}
Rc7 {[%emt 0:00:52]} 37. Nb6 {[%emt 0:00:44]} Bxe3 {[%emt 0:00:35]} 38. Nxa8 {
[%emt 0:00:41]} 1-0

[Event "EICC 2021"]
[Site "Reykjavik"]
[Date "2021.08.27"]
[Round "2.40"]
[White "Heimisson, Hilmir Freyr"]
[Black "Kulaots, Kaido"]
[Result "1/2-1/2"]
[ECO "E08"]
[WhiteElo "2309"]
[BlackElo "2548"]
[Annotator "ChessBase"]
[PlyCount "39"]
[EventDate "2021.08.26"]
[EventType "swiss"]
[EventCountry "ISL"]
[Tiebreak "Cut1 Buchholz"]
[SourceTitle "playchess.com"]
[Source "ChessBase"]
[SourceQuality "1"]
[TimeControl "40/5400+30:1800+30"]

1. d4 {[%emt 0:00:04]} Nf6 {[%emt 0:00:34]} 2. c4 {[%emt 0:01:23]} e6 {[%emt 0:
00:23]} 3. g3 {[%emt 0:00:14]} Bb4+ {[%emt 0:03:32]} 4. Bd2 {[%emt 0:00:10]}
Be7 {[%emt 0:00:32]} 5. Bg2 {[%emt 0:01:10]} d5 {[%emt 0:00:16]} 6. Nf3 {
[%emt 0:00:11]} O-O {[%emt 0:01:04]} 7. O-O {[%emt 0:00:13]} c6 {[%emt 0:02:42]
} 8. Qc2 {[%emt 0:00:14]} b6 {[%emt 0:02:16]} 9. Rd1 {[%emt 0:06:59]} Bb7 {
[%emt 0:05:33]} 10. Bf4 {[%emt 0:09:31]} Nbd7 {[%emt 0:01:34]} 11. Nc3 {
[%emt 0:10:25]} dxc4 {[%emt 0:00:49]} 12. Ne5 {[%emt 0:10:37]} Nd5 {[%emt 0:05:
05]} 13. Nxc4 {[%emt 0:00:45]} Nxf4 {[%emt 0:00:10]} 14. gxf4 {[%emt 0:00:05]}
Qc7 {[%emt 0:00:15]} 15. e3 {[%emt 0:01:13]} Rad8 {[%emt 0:00:53]} 16. Rac1 {
[%emt 0:20:37]} c5 {[%emt 0:15:17]} 17. d5 {[%emt 0:02:12]} exd5 {[%emt 0:01:
42]} 18. Nxd5 {[%emt 0:00:15]} Bxd5 {[%emt 0:00:12]} 19. Rxd5 {[%emt 0:00:20]}
b5 {[%emt 0:10:21]} 20. Ne5 {[%emt 0:02:38]} 1/2-1/2

[Event "EICC 2021"]
[Site "Reykjavik"]
[Date "2021.08.28"]
[Round "3.33"]
[White "Can, Emre"]
[Black "Mazur, Stefan"]
[Result "1/2-1/2"]
[ECO "D08"]
[WhiteElo "2569"]
[BlackElo "2416"]
[Annotator "RC"]
[PlyCount "129"]
[EventDate "2021.08.26"]
[EventType "swiss"]
[EventCountry "ISL"]
[Tiebreak "Cut1 Buchholz"]
[SourceTitle "playchess.com"]
[Source "ChessBase"]
[SourceQuality "1"]
[TimeControl "40/5400+30:1800+30"]

1. d4 {[%emt 0:00:08]} d5 {[%emt 0:01:20]} 2. c4 {[%emt 0:01:15]} e5 {[%emt 0:
00:23]} 3. dxe5 {[%emt 0:00:58]} Ne7 {[%emt 0:00:13]} 4. cxd5 {[%emt 0:01:18]}
Qxd5 {[%emt 0:00:09]} 5. Qxd5 {[%emt 0:00:11]} Nxd5 {[%emt 0:00:07]} 6. a3 {
[%emt 0:00:22]} Nc6 {[%emt 0:00:36]} 7. Nf3 {[%emt 0:02:27]} h6 {[%emt 0:00:27]
} 8. e4 {[%emt 0:01:35]} Nb6 {[%emt 0:00:16]} 9. Be3 {[%emt 0:01:13]} Bd7 {
[%emt 0:00:32]} 10. b4 {[%emt 0:01:21]} g5 {[%emt 0:00:47]} 11. b5 {[%emt 0:06:
10]} Na5 {[%emt 0:00:09]} 12. Nbd2 {[%emt 0:00:28]} c5 {[%emt 0:00:39]} 13.
bxc6 {[%emt 0:19:59]} Nxc6 {[%emt 0:00:32]} 14. h4 {[%emt 0:05:19]} g4 {
[%emt 0:07:45]} 15. Nd4 {[%emt 0:00:19]} Nxe5 {[%emt 0:06:24]} 16. Nb5 {
[%emt 0:04:23]} Bxb5 {[%emt 0:00:51]} 17. Bxb5+ {[%emt 0:00:08]} Nbd7 {[%emt 0:
00:09]} 18. Nc4 {[%emt 0:12:23]} Nxc4 {[%emt 0:06:34]} 19. Bxc4 {[%emt 0:00:05]
} Bc5 {[%emt 0:02:07]} 20. Ke2 {[%emt 0:13:34]} Bxe3 {[%emt 0:09:39]} 21. Kxe3
{[%emt 0:00:07]} Rc8 {[%emt 0:00:35]} 22. Rac1 {[%emt 0:07:39]} Ke7 {[%emt 0:
02:57]} 23. h5 {[%emt 0:05:06]} Rc5 {[%emt 0:06:08]} 24. Be2 {[%emt 0:10:04]}
Rhc8 {[%emt 0:09:25]} 25. Rxc5 {[%emt 0:00:09]} Rxc5 {[%emt 0:00:20]} 26. Bxg4
{[%emt 0:00:22]} Rc3+ {[%emt 0:03:26]} 27. Kd4 {[%emt 0:01:49]} Rxa3 {[%emt 0:
00:13]} 28. Bxd7 {[%emt 0:03:24]} Kxd7 {[%emt 0:00:07]} 29. Ke5 {[%emt 0:00:18]
} Ra2 {[%emt 0:05:23]} 30. f4 {[%emt 0:01:32]} Ke7 {[%emt 0:00:23]} 31. Kf5 {
[%emt 0:00:44]} Rxg2 {[%emt 0:08:37]} 32. Rb1 {[%emt 0:00:07]} b6 {[%emt 0:00:
20]} 33. Rc1 {[%emt 0:01:23]} Rd2 {[%emt 0:04:00]} 34. Rc6 {[%emt 0:00:17]} b5
{[%emt 0:10:22]} 35. Rxh6 {[%emt 0:00:07]} Rh2 {[%emt 0:00:38]} 36. Ra6 {
[%emt 0:00:47]} Rxh5+ {[%emt 0:05:32]} 37. Kg4 {[%emt 0:00:07]} Rh1 {[%emt 0:
07:58]} 38. Rxa7+ {[%emt 0:00:37]} Ke6 {[%emt 0:00:21]} 39. Ra6+ {[%emt 0:00:
18]} Ke7 {[%emt 0:00:45]} 40. Rb6 {[%emt 0:00:20]} Rb1 {[%emt 0:01:31]} 41. Kf5
{[%emt 0:30:28]} Rh1 {[%emt 0:02:46]} 42. Ke5 {[%emt 0:00:00]} Rc1 {[%emt 0:01:
07]} 43. Rxb5 {[%emt 0:00:00]} Rc7 {[%emt 0:01:08]} 44. Kf5 {[%emt 0:00:00]}
Ra7 {[%emt 0:00:51]} 45. Rb6 {[%emt 0:00:00]} Ra5+ {[%emt 0:02:12]} 46. e5 {
[%emt 0:00:00]} Ra1 {[%emt 0:01:07]} 47. Rb7+ {[%emt 0:00:00]} Kf8 {[%emt 0:01:
18]} 48. Kg5 {[%emt 0:00:00]} Rg1+ {[%emt 0:01:04]} 49. Kf6 {[%emt 0:00:00]}
Rg6+ {[%emt 0:00:06]} 50. Kf5 {[%emt 0:00:00]} Ra6 {[%emt 0:00:08]} 51. Rd7 {
[%emt 0:00:00]} Rh6 {[%emt 0:01:56]} 52. Rd6 {[%emt 0:00:00]} Rh5+ {[%emt 0:00:
17]} 53. Kf6 {[%emt 0:00:00]} Rh6+ {[%emt 0:00:04]} 54. Kg5 {[%emt 0:00:00]}
Rh1 {[%emt 0:00:12]} 55. f5 {[%emt 0:00:00]} Ke7 {[%emt 0:00:22]} 56. Rd3 {
[%emt 0:00:00]} f6+ {[%emt 0:08:50]} 57. exf6+ {[%emt 0:00:00]} Kf7 {[%emt 0:
00:05]} 58. Rd7+ {[%emt 0:00:00]} Kf8 {[%emt 0:00:07]} 59. f7 {[%emt 0:00:00]}
Rg1+ {[%emt 0:00:18]} 60. Kf4 {[%emt 0:00:00]} Ra1 {[%emt 0:01:01]} 61. Ke5 {
[%emt 0:00:03]} Ra6 {[%emt 0:00:33]} 62. Rd8+ {[%emt 0:00:54]} Kxf7 {[%emt 0:
00:09]} 63. Rd7+ {[%emt 0:00:07]} Kf8 {[%emt 0:00:14]} 64. Rh7 {[%emt 0:00:10]}
Rb6 {[%emt 0:00:08]} 65. Rd7 {[%emt 0:00:13]} 1/2-1/2

[Event "EICC 2021"]
[Site "Reykjavik"]
[Date "2021.08.28"]
[Round "3.34"]
[White "Pantsulaia, Levan"]
[Black "Heimisson, Hilmir Freyr"]
[Result "1-0"]
[ECO "A34"]
[WhiteElo "2564"]
[BlackElo "2309"]
[Annotator "ChessBase"]
[PlyCount "69"]
[EventDate "2021.08.26"]
[EventType "swiss"]
[EventCountry "ISL"]
[Tiebreak "Cut1 Buchholz"]
[SourceTitle "playchess.com"]
[Source "ChessBase"]
[SourceQuality "1"]
[TimeControl "40/5400+30:1800+30"]

1. c4 {[%emt 0:00:06]} c5 {[%emt 0:01:51]} 2. Nf3 {[%emt 0:00:35]} Nc6 {
[%emt 0:00:08]} 3. Nc3 {[%emt 0:00:08]} Nf6 {[%emt 0:00:52]} 4. g3 {[%emt 0:00:
19]} d5 {[%emt 0:02:14]} 5. cxd5 {[%emt 0:00:28]} Nxd5 {[%emt 0:00:08]} 6. Bg2
{[%emt 0:00:08]} g6 {[%emt 0:03:14]} 7. h4 {[%emt 0:01:56]} h6 {[%emt 0:07:26]}
8. d3 {[%emt 0:01:17]} Bg7 {[%emt 0:01:39]} 9. Bd2 {[%emt 0:00:09]} Nc7 {
[%emt 0:06:52]} 10. a3 {[%emt 0:09:40]} Be6 {[%emt 0:27:33]} 11. Rb1 {[%emt 0:
07:52]} Rc8 {[%emt 0:09:45]} 12. O-O {[%emt 0:07:22]} O-O {[%emt 0:01:57]} 13.
b4 {[%emt 0:06:29]} c4 {[%emt 0:04:00]} 14. Qc1 {[%emt 0:05:36]} Kh7 {[%emt 0:
05:07]} 15. dxc4 {[%emt 0:11:07]} Bxc4 {[%emt 0:02:30]} 16. Rd1 {[%emt 0:00:13]
} Qe8 {[%emt 0:00:47]} 17. h5 {[%emt 0:03:57]} Ne6 {[%emt 0:01:35]} 18. Qc2 {
[%emt 0:07:00]} Ncd4 {[%emt 0:04:04]} 19. Nxd4 {[%emt 0:00:07]} Nxd4 {[%emt 0:
00:05]} 20. Qe4 {[%emt 0:00:25]} Rc6 {[%emt 0:13:53]} 21. Bxh6 {[%emt 0:16:16]}
Nxe2+ {[%emt 0:00:32]} 22. Nxe2 {[%emt 0:00:07]} Bxh6 {[%emt 0:00:10]} 23. Nf4
{[%emt 0:02:13]} e5 {[%emt 0:03:05]} 24. Re1 {[%emt 0:02:18]} Bxf4 {[%emt 0:01:
38]} 25. gxf4 {[%emt 0:00:07]} Qe6 {[%emt 0:01:07]} 26. fxe5 {[%emt 0:01:27]}
Rc7 {[%emt 0:00:42]} 27. Rbd1 {[%emt 0:01:06]} Qf5 {[%emt 0:00:20]} 28. hxg6+ {
[%emt 0:04:35]} fxg6 {[%emt 0:00:01]} 29. Qh4+ {[%emt 0:00:11]} Kg7 {[%emt 0:
03:39]} 30. Rd6 {[%emt 0:03:32]} Rcf7 {[%emt 0:00:00]} 31. e6 {[%emt 0:00:28]}
Rh8 {[%emt 0:00:00]} 32. Qd4+ {[%emt 0:01:12]} Rf6 {[%emt 0:00:00]} 33. Rd7+ {
[%emt 0:00:10]} Kg8 {[%emt 0:00:00]} 34. e7 {[%emt 0:00:31]} Rh1+ {[%emt 0:00:
02]} 35. Bxh1 {[%emt 0:00:20]} 1-0

[Event "EICC 2021"]
[Site "Reykjavik"]
[Date "2021.08.28"]
[Round "3.37"]
[White "Van Foreest, Lucas"]
[Black "Pein, Malcolm"]
[Result "1-0"]
[ECO "C54"]
[WhiteElo "2544"]
[BlackElo "2309"]
[Annotator "ChessBase"]
[PlyCount "121"]
[EventDate "2021.08.26"]
[EventType "swiss"]
[EventCountry "ISL"]
[Tiebreak "Cut1 Buchholz"]
[SourceTitle "playchess.com"]
[Source "ChessBase"]
[SourceQuality "1"]
[TimeControl "40/5400+30:1800+30"]

1. e4 {[%emt 0:00:10]} e5 {[%emt 0:00:14]} 2. Nf3 {[%emt 0:00:12]} Nc6 {
[%emt 0:00:07]} 3. Bc4 {[%emt 0:00:42]} Nf6 {[%emt 0:01:13]} 4. d3 {[%emt 0:00:
42]} Bc5 {[%emt 0:00:39]} 5. O-O {[%emt 0:00:28]} d6 {[%emt 0:03:02]} 6. c3 {
[%emt 0:00:24]} a6 {[%emt 0:00:31]} 7. a4 {[%emt 0:01:58]} Ba7 {[%emt 0:01:39]}
8. h3 {[%emt 0:01:35]} Qe7 {[%emt 0:03:28]} 9. b4 {[%emt 0:07:04]} Be6 {
[%emt 0:07:36]} 10. Bb3 {[%emt 0:24:43]} Bxb3 {[%emt 0:06:52]} 11. Qxb3 {
[%emt 0:00:11]} O-O {[%emt 0:01:44]} 12. Nbd2 {[%emt 0:04:40]} Qe6 {[%emt 0:04:
14]} 13. Qxe6 {[%emt 0:00:59]} fxe6 {[%emt 0:00:04]} 14. g3 {[%emt 0:03:26]} d5
{[%emt 0:10:39]} 15. Kg2 {[%emt 0:04:33]} b5 {[%emt 0:06:02]} 16. Re1 {[%emt 0:
03:46]} dxe4 {[%emt 0:12:56]} 17. dxe4 {[%emt 0:07:26]} Rad8 {[%emt 0:01:41]}
18. Re2 {[%emt 0:02:11]} Bb6 {[%emt 0:11:17]} 19. Bb2 {[%emt 0:00:21]} Ne8 {
[%emt 0:03:28]} 20. Nf1 {[%emt 0:03:19]} Rd3 {[%emt 0:04:10]} 21. Ne1 {[%emt 0:
02:27]} Rd7 {[%emt 0:00:47]} 22. Nf3 {[%emt 0:03:56]} Rd3 {[%emt 0:00:38]} 23.
N1h2 {[%emt 0:00:17]} Rd7 {[%emt 0:03:28]} 24. axb5 {[%emt 0:01:11]} axb5 {
[%emt 0:00:02]} 25. Ra8 {[%emt 0:02:38]} Nd6 {[%emt 0:01:31]} 26. Rxf8+ {
[%emt 0:00:22]} Kxf8 {[%emt 0:00:02]} 27. Bc1 {[%emt 0:01:07]} Nc4 {[%emt 0:05:
08]} 28. Nd2 {[%emt 0:00:21]} Nd6 {[%emt 0:01:23]} 29. Nhf3 {[%emt 0:01:59]} h6
{[%emt 0:00:35]} 30. Bb2 {[%emt 0:02:54]} Rd8 {[%emt 0:01:29]} 31. Re1 {
[%emt 0:00:31]} Ra8 {[%emt 0:00:22]} 32. Ra1 {[%emt 0:01:42]} Rxa1 {[%emt 0:00:
49]} 33. Bxa1 {[%emt 0:00:01]} Ke7 {[%emt 0:00:28]} 34. Bb2 {[%emt 0:00:17]}
Kf6 {[%emt 0:03:36]} 35. Kf1 {[%emt 0:01:01]} Kf7 {[%emt 0:01:48]} 36. Ke2 {
[%emt 0:00:07]} Ke7 {[%emt 0:00:44]} 37. Ne1 {[%emt 0:01:20]} Nd8 {[%emt 0:01:
55]} 38. Nd3 {[%emt 0:00:01]} N8f7 {[%emt 0:00:11]} 39. h4 {[%emt 0:00:33]} h5
{[%emt 0:00:41]} 40. f3 {[%emt 0:02:58]} Nc4 {[%emt 0:02:06]} 41. Nxc4 {
[%emt 0:30:59]} bxc4 {[%emt 0:30:07]} 42. Ne1 {[%emt 0:00:13]} c5 {[%emt 0:00:
00]} 43. Nc2 {[%emt 0:00:00]} Nd6 {[%emt 0:00:00]} 44. Ba3 {[%emt 0:00:00]} Nb5
{[%emt 0:00:00]} 45. bxc5 {[%emt 0:00:00]} Nxc3+ {[%emt 0:00:00]} 46. Kf1 {
[%emt 0:00:00]} Ba7 {[%emt 0:00:00]} 47. Bb2 {[%emt 0:00:00]} Nb5 {[%emt 0:00:
00]} 48. Bxe5 {[%emt 0:00:00]} g6 {[%emt 0:00:00]} 49. c6 {[%emt 0:00:00]} Bc5
{[%emt 0:00:00]} 50. Ke2 {[%emt 0:00:00]} Bd6 {[%emt 0:00:00]} 51. f4 {[%emt 0:
00:00]} Bxe5 {[%emt 0:01:20]} 52. fxe5 {[%emt 0:00:00]} Kd8 {[%emt 0:00:06]}
53. Ke3 {[%emt 0:00:00]} Kc7 {[%emt 0:00:37]} 54. Nd4 {[%emt 0:01:29]} Nxd4 {
[%emt 0:01:33]} 55. Kxd4 {[%emt 0:00:03]} c3 {[%emt 0:00:10]} 56. Kxc3 {
[%emt 0:00:05]} Kxc6 {[%emt 0:00:01]} 57. Kc4 {[%emt 0:01:14]} Kb6 {[%emt 0:00:
49]} 58. Kd4 {[%emt 0:00:41]} Kb5 {[%emt 0:00:35]} 59. Ke3 {[%emt 0:01:08]} Kc4
{[%emt 0:00:10]} 60. Kf4 {[%emt 0:00:41]} Kd4 {[%emt 0:00:08]} 61. g4 {[%emt 0:
19:54]} 1-0

[Event "EICC 2021"]
[Site "Reykjavik"]
[Date "2021.08.28"]
[Round "3.38"]
[White "Milikow, Yoav"]
[Black "Hillarp Persson, Tiger"]
[Result "0-1"]
[ECO "E92"]
[WhiteElo "2287"]
[BlackElo "2543"]
[Annotator "ChessBase"]
[PlyCount "60"]
[EventDate "2021.08.26"]
[EventType "swiss"]
[EventCountry "ISL"]
[Tiebreak "Cut1 Buchholz"]
[SourceTitle "playchess.com"]
[Source "ChessBase"]
[SourceQuality "1"]
[TimeControl "40/5400+30:1800+30"]

1. d4 {[%emt 0:00:04]} Nf6 {[%emt 0:00:07]} 2. c4 {[%emt 0:00:05]} g6 {[%emt 0:
00:06]} 3. Nc3 {[%emt 0:00:05]} Bg7 {[%emt 0:00:05]} 4. e4 {[%emt 0:00:07]} d6
{[%emt 0:00:05]} 5. Be2 {[%emt 0:00:08]} O-O {[%emt 0:00:07]} 6. Be3 {[%emt 0:
00:04]} Na6 {[%emt 0:00:18]} 7. Nf3 {[%emt 0:01:57]} e5 {[%emt 0:00:09]} 8. d5
{[%emt 0:00:18]} Ng4 {[%emt 0:00:09]} 9. Bg5 {[%emt 0:00:29]} f6 {[%emt 0:00:
09]} 10. Bh4 {[%emt 0:00:21]} h5 {[%emt 0:00:07]} 11. Nd2 {[%emt 0:04:16]} Nh6
{[%emt 0:00:16]} 12. f3 {[%emt 0:02:29]} c5 {[%emt 0:01:06]} 13. a3 {[%emt 0:
07:26]} Nf7 {[%emt 0:01:55]} 14. Qb1 {[%emt 0:03:43]} Bh6 {[%emt 0:00:46]} 15.
Bf2 {[%emt 0:00:29]} Nc7 {[%emt 0:09:57]} 16. b4 {[%emt 0:04:17]} b6 {[%emt 0:
00:09]} 17. Bd1 {[%emt 0:04:22]} f5 {[%emt 0:16:58]} 18. h4 {[%emt 0:02:42]}
Ne8 {[%emt 0:15:07]} 19. Ba4 {[%emt 0:11:28]} Bd7 {[%emt 0:02:09]} 20. Bc6 {
[%emt 0:03:20]} Rc8 {[%emt 0:00:50]} 21. b5 {[%emt 0:00:43]} Nf6 {[%emt 0:02:
45]} 22. Ra2 {[%emt 0:06:14]} Rc7 {[%emt 0:02:02]} 23. a4 {[%emt 0:02:04]} Bc8
{[%emt 0:00:15]} 24. a5 {[%emt 0:02:40]} bxa5 {[%emt 0:02:11]} 25. Nb3 {
[%emt 0:01:37]} fxe4 {[%emt 0:01:02]} 26. Nxe4 {[%emt 0:00:41]} Bf5 {[%emt 0:
01:49]} 27. Ke2 {[%emt 0:05:25]} Bxe4 {[%emt 0:07:21]} 28. fxe4 {[%emt 0:00:08]
} Qc8 {[%emt 0:00:30]} 29. Kf1 {[%emt 0:03:12]} Ng4 {[%emt 0:06:17]} 30. Rh3 {
[%emt 0:01:35]} Nd8 {[%emt 0:01:23]} 0-1

[Event "EICC 2021"]
[Site "Reykjavik"]
[Date "2021.08.28"]
[Round "3.39"]
[White "Hjartarson, Johann"]
[Black "Sylvan, Jacob"]
[Result "1/2-1/2"]
[ECO "E43"]
[WhiteElo "2519"]
[BlackElo "2307"]
[Annotator "ChessBase"]
[PlyCount "82"]
[EventDate "2021.08.26"]
[EventType "swiss"]
[EventCountry "ISL"]
[Tiebreak "Cut1 Buchholz"]
[SourceTitle "playchess.com"]
[Source "ChessBase"]
[SourceQuality "1"]
[TimeControl "40/5400+30:1800+30"]

1. d4 {[%emt 0:00:35]} Nf6 {[%emt 0:00:14]} 2. c4 {[%emt 0:00:07]} e6 {[%emt 0:
00:06]} 3. Nc3 {[%emt 0:00:23]} Bb4 {[%emt 0:00:09]} 4. e3 {[%emt 0:00:36]} b6
{[%emt 0:01:41]} 5. Bd3 {[%emt 0:00:55]} Bb7 {[%emt 0:00:41]} 6. Nf3 {[%emt 0:
00:12]} Ne4 {[%emt 0:00:32]} 7. O-O {[%emt 0:00:14]} f5 {[%emt 0:01:20]} 8. Ne2
{[%emt 0:00:42]} Bd6 {[%emt 0:04:35]} 9. b3 {[%emt 0:00:38]} O-O {[%emt 0:02:
43]} 10. Bb2 {[%emt 0:00:17]} Be7 {[%emt 0:12:07]} 11. Ng3 {[%emt 0:05:28]} d5
{[%emt 0:07:32]} 12. cxd5 {[%emt 0:07:22]} exd5 {[%emt 0:01:33]} 13. Qe2 {
[%emt 0:00:15]} a5 {[%emt 0:05:59]} 14. a3 {[%emt 0:08:44]} Nd7 {[%emt 0:03:10]
} 15. Rfd1 Bd6 {[%emt 0:10:10]} 16. Ne5 {[%emt 0:02:56]} Qe7 {[%emt 0:02:12]}
17. f4 {[%emt 0:00:32]} Nxg3 {[%emt 0:07:46]} 18. hxg3 {[%emt 0:00:21]} c5 {
[%emt 0:00:54]} 19. a4 {[%emt 0:04:25]} Qe6 20. Rac1 {[%emt 0:31:02]} Nf6 {
[%emt 0:11:36]} 21. Rc2 Bxe5 {[%emt 0:07:16]} 22. dxe5 {[%emt 0:02:54]} Ng4 {
[%emt 0:00:43]} 23. Kf1 {[%emt 0:01:35]} Qh6 {[%emt 0:01:04]} 24. Ke1 {[%emt 0:
02:11]} Qh2 {[%emt 0:01:13]} 25. Kd2 {[%emt 0:01:39]} Qxg3 {[%emt 0:02:04]} 26.
Qf3 {[%emt 0:07:24]} Qf2+ {[%emt 0:11:21]} 27. Be2 {[%emt 0:02:11]} d4 {
[%emt 0:00:32]} 28. Qxf2 {[%emt 0:03:04]} Nxf2 {[%emt 0:00:26]} 29. exd4 {
[%emt 0:03:27]} Nxd1 {[%emt 0:01:07]} 30. Bc4+ {[%emt 0:00:12]} Kh8 {[%emt 0:
00:12]} 31. Kxd1 {[%emt 0:00:06]} Rfd8 {[%emt 0:02:51]} 32. e6 {[%emt 0:03:38]}
Bd5 {[%emt 0:01:25]} 33. e7 {[%emt 0:06:26]} Rd7 {[%emt 0:00:20]} 34. Re2 {
[%emt 0:03:46]} Bxc4 {[%emt 0:00:19]} 35. e8=Q+ {[%emt 0:00:17]} Rxe8 {[%emt 0:
00:04]} 36. Rxe8+ {[%emt 0:00:08]} Bg8 {[%emt 0:00:02]} 37. Rb8 {[%emt 0:01:05]
} Rd6 {[%emt 0:01:11]} 38. Ke2 {[%emt 0:02:19]} cxd4 {[%emt 0:00:08]} 39. Kd3 {
[%emt 0:00:47]} h5 {[%emt 0:00:38]} 40. Bxd4 {[%emt 0:00:16]} Kh7 {[%emt 0:00:
07]} 41. Rxb6 {[%emt 0:30:42]} Rxb6 {[%emt 0:32:01]} 1/2-1/2

[Event "EICC 2021"]
[Site "Reykjavik"]
[Date "2021.08.28"]
[Round "3.40"]
[White "Ftacnik, Lubomir"]
[Black "Vedder, Richard"]
[Result "1-0"]
[ECO "D07"]
[WhiteElo "2513"]
[BlackElo "2266"]
[Annotator "ChessBase"]
[PlyCount "47"]
[EventDate "2021.08.26"]
[EventType "swiss"]
[EventCountry "ISL"]
[Tiebreak "Cut1 Buchholz"]
[SourceTitle "playchess.com"]
[Source "ChessBase"]
[SourceQuality "1"]
[TimeControl "40/5400+30:1800+30"]

1. d4 {[%emt 0:00:05]} d5 {[%emt 0:00:04]} 2. c4 {[%emt 0:00:10]} dxc4 {
[%emt 0:00:06]} 3. e4 {[%emt 0:00:11]} Nc6 {[%emt 0:00:13]} 4. Nf3 {[%emt 0:00:
10]} Bg4 {[%emt 0:00:10]} 5. d5 {[%emt 0:00:18]} Ne5 {[%emt 0:00:08]} 6. Nc3 {
[%emt 0:00:30]} Nf6 {[%emt 0:09:44]} 7. Be3 {[%emt 0:00:19]} Bxf3 {[%emt 0:05:
41]} 8. gxf3 {[%emt 0:00:16]} c6 {[%emt 0:00:13]} 9. f4 {[%emt 0:12:19]} Nd3+ {
[%emt 0:00:19]} 10. Bxd3 {[%emt 0:00:09]} cxd3 {[%emt 0:00:03]} 11. dxc6 {
[%emt 0:01:19]} bxc6 {[%emt 0:00:11]} 12. Qa4 {[%emt 0:00:49]} Qd7 {[%emt 0:07:
29]} 13. O-O-O {[%emt 0:02:02]} Rd8 {[%emt 0:03:20]} 14. Rxd3 {[%emt 0:05:49]}
Qxd3 {[%emt 0:02:31]} 15. Rd1 {[%emt 0:00:04]} Qxd1+ {[%emt 0:00:12]} 16. Nxd1
{[%emt 0:00:06]} Rc8 {[%emt 0:00:30]} 17. Nc3 {[%emt 0:04:25]} g6 {[%emt 0:07:
24]} 18. Qa6 {[%emt 0:07:03]} Kd8 {[%emt 0:04:34]} 19. Qxa7 {[%emt 0:08:10]}
Nd7 {[%emt 0:00:15]} 20. Na4 {[%emt 0:10:47]} Bh6 {[%emt 0:03:47]} 21. Kb1 {
[%emt 0:04:43]} f6 {[%emt 0:06:36]} 22. Nc5 {[%emt 0:02:35]} Nf8 {[%emt 0:03:
15]} 23. Qb7 {[%emt 0:04:14]} Rc7 {[%emt 0:00:54]} 24. Qb6 {[%emt 0:00:32]} 1-0